Cogmind - Beta 16 @@@ ROGUE MODE // 2026.01.24 @ 12:37:20 Player: rootmos Result: Self-destructed Performance ------------- Evolutions (2) 1000 Regions Visited (3) 600 Robots Destroyed (42) 210 Value Destroyed (1184) 1184 Prototype IDs (1) 20 Alien Tech Used (0) 0 Bonus (0) 0 TOTAL SCORE: 3014 Bonus ------- None Cogmind --------- Core Integrity 470/550 Matter 221/300 Energy 216/265 System Corruption 0% Temperature Danger (497) Movement Core (1200) Ox23 Location -8/Materials Parts ------- > --- POWER (1) -------- Improved Ion Engine > --- PROPULSION (4) --- Light Treads Light Treads Improved Treads Improved Treads > --- UTILITY (4) ------ Heat Sink High-capacity Storage Unit Hardened Light Armor Plating Reactive Plating > --- WEAPON (2) ------- Heavy Particle Cannon Improved Assault Rifle > --- INVENTORY (20) --- Improved Ion Engine Light Treads Light Treads Heat Sink Medium Storage Unit High-capacity Storage Unit Shield Generator Light EM Pulse Cannon Heavy Particle Cannon Light Assault Rifle Heavy Assault Rifle Peak State ------------ > --- POWER ------------ Improved Ion Engine > --- PROPULSION ------- Light Treads Light Treads Improved Treads Improved Treads > --- UTILITY ---------- Heat Sink High-capacity Storage Unit Hardened Light Armor Plating Reactive Plating > --- WEAPON ----------- Heavy Particle Cannon Improved Assault Rifle > --- INVENTORY -------- Improved Ion Engine Light Treads Light Treads Heat Sink Medium Storage Unit High-capacity Storage Unit Shield Generator EM Shotgun Light EM Pulse Cannon Heavy Particle Cannon Heavy Particle Cannon Light Assault Rifle Heavy Assault Rifle [Rating: 23] Favorites ----------- Power Light Ion Engine Engine Light Ion Engine Propulsion Light Treads Treads Light Treads Leg Aluminum Leg Utility Heat Sink Device Heat Sink Storage Medium Storage Unit Protection Light Armor Plating Weapon Assault Rifle Energy Gun Particle Gun Energy Cannon Heavy Particle Cannon Ballistic Gun Assault Rifle Build | -11 -10 -9 -8 ------- Run | Yrd Mat Mat Mat Slots Evolved 4 | . . 2 2 Power . | . . . . Propulsion 2 | . . 1 1 Utility 2 | . . 1 1 Weapon . | . . . . Parts Attached 48 | . 20 25 3 Power 5 | . 1 4 . Engine 5 | . 1 4 . Core . | . . . . Reactor . | . . . . Propulsion 16 | . 8 8 . Treads 10 | . 4 6 . Leg 6 | . 4 2 . Wheel . | . . . . Hover . | . . . . Flight . | . . . . Utility 14 | . 5 7 2 Device 6 | . 3 3 . Storage 3 | . 2 . 1 Processor . | . . . . Hackware . | . . . . Protection 5 | . . 4 1 Artifact . | . . . . Weapon 13 | . 6 6 1 Energy Gun 4 | . 4 . . Energy Cannon 3 | . . 2 1 Ballistic Gun 6 | . 2 4 . Ballistic Cannon . | . . . . Launcher . | . . . . Special Weapon . | . . . . Impact Weapon . | . . . . Slashing Weapon . | . . . . Piercing Weapon . | . . . . Special Melee Weapon . | . . . . Unidentified Prototypes 1 | . . 1 . Parts Lost 16 | . 5 9 2 Power 2 | . . 2 . Propulsion 3 | . . 3 . Utility 4 | . 1 3 . Weapon 7 | . 4 1 2 Highest Loss Streak 5 | . 3 5 2 To Critical Strikes . | . . . . Average Backups 9 | . 9 9 11 Power 1 | . 1 1 1 Propulsion 3 | . 3 2 2 Utility 3 | . 4 1 3 Weapon 2 | . 1 3 5 Tool/Special . | . . . . Unused Backups 21 | . 14 2 5 Power 2 | . 1 . 1 Propulsion 8 | . 6 2 . Utility 6 | . 4 . 2 Weapon 5 | . 3 . 2 Tool/Special . | . . . . Average Slot Usage (%) 96 | . 98 94 98 Engine 11 | . 14 10 9 Treads 18 | . 12 21 36 Leg 11 | . 15 9 . Device 11 | . 12 9 9 Storage 12 | . 14 11 9 Protection 5 | . . 10 16 Energy Gun 7 | . 12 3 . Energy Cannon 3 | . . 5 8 Ballistic Gun 13 | . 14 13 9 Peak Build Rating 23 | . 12 18 23 Average Rating 11 | . 8 13 22 On Entrance 10 | 6 6 12 18 Avg Prop Armor Cover (%) 5 | . . 5 . Naked Turns . | . . . . Heaviest Build 72 | 14 29 32 72 Greatest Support 86 | 20 46 66 86 Greatest Overweight (x) 3 | . . 1 3 Average Overweight (x) . | . . . . Largest Inventory Capacity 20 | . 15 10 20 Average Capacity 11 | . 11 10 19 Most Carried 15 | . 15 10 14 Average Carried 9 | . 9 9 12 Final Capacity 20 | 8 10 10 20 Final Carried 11 | 6 10 10 11 Class Distribution -------------------- 77% | Mutant 22% | Scavenger-Mutant Dominant Class ---------------- Mutant | -10/Materials Mutant | -9/Materials Scavenger-Mutant | -8/Materials Resources | -11 -10 -9 -8 ----------- Run | Yrd Mat Mat Mat Matter Collected 1033 | 200 270 469 94 Remotely . | . . . . Salvage Created 1501 | . 438 651 412 Parts 78 | . 33 34 11 Haulers Intercepted . | . . . . Recyclers Shooed . | . . . . Parts Field Recycled . | . . . . Retrieved Matter . | . . . . Parts Self-Destructed . | . . . . Prevented . | . . . . Parts Restored . | . . . . Kills | -11 -10 -9 -8 ------- Run | Yrd Mat Mat Mat Combat Hostiles Destroyed 39 | . 16 17 6 Guns 29 | . 16 12 1 Cannons 9 | . . 5 4 AOE 1 | . . . 1 Classes Destroyed 6 | . 3 2 1 Worker 2 | . 1 . 1 Recycler 1 | . . . 1 Swarmer 14 | . 9 5 . Grunt 16 | . 7 5 4 Brawler 2 | . . 2 . Sentry 7 | . . 5 2 Best Kill Streak 7 | . 5 3 7 Combat Bots Only 5 | . 5 3 5 Max Kills in Single Turn 2 | . 2 1 1 Gunslinging 1 | . 1 . . Exploded 1 | . . . 1 Melee . | . . . . Uniques/NPCs Destroyed . | . . . . Combat | -11 -10 -9 -8 -------- Run | Yrd Mat Mat Mat Hostile Shots Fired 304 | . 106 131 67 Missed 72 | . 24 37 11 Hits 232 | . 82 94 56 Melee 1 | . . 1 . Projectile 231 | . 82 93 56 Critical Strikes 6 | . 2 . 4 Damage Taken 2733 | . 856 1087 790 Core 322 | . 124 118 80 Absorbed by Shields 13 | . . 13 . Ignored by Resistances 41 | . . . 41 Core Remaining (%) 73 | 100 50 70 . Volleys Fired 126 | . 45 58 23 Largest 2 | . 2 2 2 Hottest 121 | . 110 121 98 Shots Fired 226 | . 74 114 38 Gun 193 | . 74 101 18 Cannon 33 | . . 13 20 Launcher . | . . . . Special . | . . . . Kinetic 139 | . 41 83 15 Thermal 65 | . 18 27 20 Explosive . | . . . . Electromagnetic 22 | . 15 4 3 Robot Hit Streak 15 | . 10 15 8 Robot Miss Streak 3 | . 3 3 2 Penetration Max . | . . . . Secondary Targets 4 | . 2 2 . Max Gunslinging Chain 1 | . 1 1 . Shots Hit Robots 150 | . 48 74 28 Core Hits 61 | . 21 26 14 Critical Kills . | . . . . Critical Parts Destroyed 1 | . 1 . . Critical Strikes 1 | . 1 . . Destroy 1 | . 1 . . Melee Attacks . | . . . . Impact . | . . . . Slashing . | . . . . Piercing . | . . . . Sneak Attacks . | . . . . Combat Hostiles . | . . . . Follow-up Attacks . | . . . . Damage Inflicted 2506 | . 766 1029 711 Guns 1675 | . 723 761 191 Cannons 668 | . . 268 400 Explosions 163 | . 43 . 120 Melee . | . . . . Ramming . | . . . . Kinetic 1176 | . 372 662 142 Thermal 1079 | . 260 299 520 Explosive . | . . . . Electromagnetic 251 | . 134 68 49 Impact . | . . . . Slashing . | . . . . Piercing . | . . . . Highest Corruption . | . . . . Average Corruption . | . . . . Corruption Purged . | . . . . Corruption Blocked . | . . . . Overload Shots . | . . . . Overflow Damage 5 | . . 5 . Projectiles 5 | . . 5 . Explosions . | . . . . Melee . | . . . . Knockbacks . | . . . . Impact . | . . . . Kinetic . | . . . . Secondary . | . . . . Self-Inflicted Damage . | . . . . Shots . | . . . . Rammed . | . . . . Targets Rammed . | . . . . Kicked . | . . . . Crushed . | . . . . Highest Temperature 602 | . 354 78 602 Average Temperature 144 | . 213 18 301 Received Heat Transfer 1116 | . 318 330 468 Effects 22 | . 2 . 20 Shutdowns 4 | . 1 . 3 Interference 5 | . . . 5 Matter Decay 1 | . . . 1 Short Circuit 5 | . 1 . 4 Damage (minor) 3 | . . . 3 Damage (major) 4 | . . . 4 Siege Activations . | . . . . Martial Activations . | . . . . Shielding Activations . | . . . . Robots Disrupted . | . . . . Combat Hostiles . | . . . . Robots Corrupted . | . . . . Combat Hostiles . | . . . . Parts Fried . | . . . . Impact Corruptions . | . . . . Robots Melted . | . . . . Combat Hostiles . | . . . . Parts Melted 1 | . . . 1 Heat Transferred 1828 | . 568 518 742 Parts Sabotaged . | . . . . Parts Stolen . | . . . . Parts Stripped . | . . . . Power Chain Reactions 2 | . 1 . 1 Alert | -11 -10 -9 -8 ------- Run | Yrd Mat Mat Mat Maximum Alert Level . | . . . . Low Security (%) 100 | . 100 100 100 Level 1 . | . . . . Level 2 . | . . . . Level 3 . | . . . . Level 4 . | . . . . Level 5 . | . . . . High Security . | . . . . Max Security . | . . . . Peak Influence 158 | . 158 94 122 Initial 27 | . . 16 27 Average 53 | . 69 40 25 Influence Increases 1131 | . 461 477 193 Destroy 0b10 Robot/C 780 | . 320 340 120 Destroy 0b10 Robot/NC 15 | . 5 . 10 Destroy Leader 190 | . 60 90 40 Successful Hack 25 | . 11 14 . Disable Machine 60 | . 30 15 15 Destroy Structure 16 | . 5 3 8 Lose Combat Pursuer 45 | . 30 15 . Influence Decreases 1009 | . 421 450 138 Entered New Map 64 | . . 24 40 Time Decay 815 | . 371 366 78 Lost Part 130 | . 50 60 20 Squads Dispatched 4 | . 2 . 2 Investigation 3 | . 1 . 2 Extermination . | . . . . Reinforcement 1 | . 1 . . Assault . | . . . . Garrison . | . . . . Intercept . | . . . . Searches Triggered . | . . . . Construction Impeded . | . . . . Haulers Reinforced . | . . . . Active Scanning Responses . | . . . . Cargo Convoy Interrupts . | . . . . Stealth | -11 -10 -9 -8 --------- Run | Yrd Mat Mat Mat Distress Signals 1 | . . 1 . Communications Jammed . | . . . . Distress Signals . | . . . . Times Spotted 66 | . 33 26 7 Peak Tracking Total 5 | . 5 4 4 Tactical Retreats 2 | . 1 1 . Traps | -11 -10 -9 -8 ------- Run | Yrd Mat Mat Mat Traps Triggered 2 | . 1 . 1 Indirectly . | . . . . Trap Hack Attempts . | . . . . Triggered . | . . . . Disarmed . | . . . . Reprogrammed . | . . . . Reused . | . . . . Traps Extracted . | . . . . Installed . | . . . . Triggered . | . . . . Machines | -11 -10 -9 -8 ---------- Run | Yrd Mat Mat Mat Machines Disabled 4 | . 2 1 1 Max in Single Turn 1 | . 1 1 1 Machines Repaired . | . . . . Machines Dismantled . | . . . . Machines Sabotaged . | . . . . Overloaded Fab Kills . | . . . . Hacking | -11 -10 -9 -8 --------- Run | Yrd Mat Mat Mat Machines Accessed 9 | . 6 2 1 Terminals 8 | . 6 1 1 Fabricators . | . . . . Repair Stations . | . . . . Recycling Units . | . . . . Scanalyzers 1 | . . 1 . Garrison Access . | . . . . Total Hacks 19 | . 11 5 3 Successful 9 | . 6 3 . Failed 10 | . 5 2 3 Catastrophic 2 | . 1 1 . Database Lockouts . | . . . . Manual . | . . . . Terminals 16 | . 11 2 3 Fabricators . | . . . . Repair Stations . | . . . . Recycling Units . | . . . . Scanalyzers 3 | . . 3 . Garrison Access . | . . . . Terminal Hacks 7 | . 6 1 . Branch Access Points 1 | . 1 . . Alert Level 2 | . 2 . . Locate Traps 3 | . 2 1 . Zone Layout 1 | . 1 . . Fabricator Hacks . | . . . . Repair Station Hacks . | . . . . Recycling Unit Hacks . | . . . . Scanalyzer 2 | . . 2 . Insert Component 1 | . . 1 . Analyze 1 | . . 1 . Garrison Access Hacks . | . . . . Unauthorized Hacks . | . . . . Terminals . | . . . . Fabricators . | . . . . Repair Stations . | . . . . Recycling Units . | . . . . Scanalyzers . | . . . . Garrison Access . | . . . . Data Cores Recovered . | . . . . Used . | . . . . Hacking Detections 7 | . 4 2 1 Full Trace Events 3 | . 1 1 1 Feedback Events . | . . . . Feedback Blocked . | . . . . Robot Schematics Acquired . | . . . . Robots Built . | . . . . Authchips . | . . . . Time . | . . . . Total Robot Build Rating . | . . . . Part Schematics Acquired 1 | . . 1 . Parts Built . | . . . . Authchips . | . . . . Time . | . . . . Total Part Build Rating . | . . . . Part Studies Acquired . | . . . . Parts Repaired . | . . . . Time . | . . . . Parts Recycled . | . . . . Recycled Matter . | . . . . Retrieved Matter . | . . . . Retrieved Components . | . . . . Parts Scanalyzed 1 | . . 1 . Part Schematics Acquired 1 | . . 1 . Parts Damaged . | . . . . Bothacking | -11 -10 -9 -8 ------------ Run | Yrd Mat Mat Mat Used RIF Installer . | . . . . Robots Hacked . | . . . . Non-combat . | . . . . Combat . | . . . . Robot Hacks Applied . | . . . . Relay Couplers Released . | . . . . Fabnet Peak Effective % . | . . . . Robots Rewired . | . . . . Allies Hacked . | . . . . Hacks Repelled . | . . . . Allies | -11 -10 -9 -8 -------- Run | Yrd Mat Mat Mat Total Allies . | . . . . Largest Group . | . . . . Highest-Rated Group . | . . . . Highest-Rated Ally . | . . . . Total Orders . | . . . . Ally Attacks . | . . . . Total Damage . | . . . . Kills . | . . . . Allies Corrupted . | . . . . Allies Melted . | . . . . Intel | -11 -10 -9 -8 ------- Run | Yrd Mat Mat Mat Active Infowar (turns) 36 | . 36 . . Sensors 36 | . 36 . . Robot Analysis Total . | . . . . Derelict Logs Recovered . | . . . . Drone Launches . | . . . . Drone Recoveries . | . . . . Exploration | -11 -10 -9 -8 ------------- Run | Yrd Mat Mat Mat Turns Passed 2417 | . 1195 1008 214 Spaces Moved 1350 | 1 743 521 85 Core . | . . . . Treads 712 | . 283 344 85 Legs 638 | 1 460 177 . Wheels . | . . . . Hover . | . . . . Flight . | . . . . Fastest Speed 120 | 120 120 120 160 Average Speed 142 | 120 135 149 162 Slowest Speed 400 | 120 160 190 400 Overloaded Moves . | . . . . Propulsion Burnouts . | . . . . Robots Hopped . | . . . . Potential Cave-ins . | . . . . Cave-ins Triggered . | . . . . Exploration Rate (%) 36 | 1 89 46 10 Regions Visited 3 Branch Regions . Pre-discovered Areas . | . . . . Known Exits Taken . | . . . . Unknown Exits Taken 3 | 1 1 1 . Scrap Searched . | . . . . Spaces Dug . | . . . . Terrain Destroyed 13 | . 5 1 7 Melee . | . . . . Projectile 3 | . . 1 2 AOE 10 | . 5 . 5 Terrain Rammed . | . . . . Walls Destroyed . | . . . . Machines Disabled . | . . . . Actions | -11 -10 -9 -8 --------- Run | Yrd Mat Mat Mat Total 1631 | . 866 643 122 Wait 31 | . 13 17 1 Move 1347 | . 742 520 85 Hop . | . . . . Pick Up 34 | . 22 9 3 Fast Attach 7 | . 3 3 1 Attach 17 | . 4 8 5 Detach 3 | . 1 . 2 Swap 35 | . 15 18 2 Drop 31 | . 21 10 . Fire 126 | . 45 58 23 Melee . | . . . . Ram . | . . . . Kick . | . . . . Crush . | . . . . Escape Stasis . | . . . . Rewire . | . . . . Trap . | . . . . Miscellaneous . | . . . . Route ------- -11/Scrapyard -10/Materials (discovered 5 exits: *Mat x3 / *Min x2) -9/Materials (discovered 3 exits: *Mat x2 / [*Min]) -8/Materials History --------- Turn | Location | Event 1 | -11/Scrapyard | Discovered new exit (range 0) 1 | -11/Scrapyard | Entered Materials 123 | -10/Materials | Identified exit to Mines 317 | -10/Materials | Build established: Mutant 408 | -10/Materials | Discovered new exit (range 10) 577 | -10/Materials | Lost 3 parts (3w) 816 | -10/Materials | Discovered new exit (range 13) 1022 | -10/Materials | Discovered new exit (range 9) 1196 | -10/Materials | Entered another Materials area 1196 | -9/Materials | Evolved 2 slots: Propulsion x1, Utility x1 1252 | -9/Materials | Discovered new exit (range 11) 1484 | -9/Materials | Discovered new exit (range 8) 1485 | -9/Materials | Lost 5 parts (1p2n1u1w) 1838 | -9/Materials | Build established: Scavenger-Mutant 2134 | -9/Materials | Discovered new exit (range 15) 2151 | -9/Materials | Build established: Mutant 2204 | -9/Materials | Entered another Materials area 2204 | -8/Materials | Evolved 2 slots: Propulsion x1, Utility x1 2418 | -8/Materials | Self-destructed Last Messages --------------- 02407_ Overheating: Short circuit. 02407_ K-01 Serf collects debris. 02408_ Overheating: System interference. 02408_ Imp. Assault Rifle temporarily disabled. 02408_ G-47 Trooper destroyed. 02409_ Imp. Treads broken. 02409_ Overheating: Short circuit. 02410_ Overheating: Imp. Treads damaged (-14). 02410_ R-06 Scavenger destroyed. 02411_ K-01 Serf collects debris. 02412_ Imp. Treads broken. 02412_ Overheating: Short circuit. 02412_ K-01 Serf destroyed. 02413_ Overheating: Lgt. Treads damaged (-38). 02414_ Acquired 55 matter. 02415_ Overheating: Matter decay (-58). 02417_ Power failure, Imp. Ion Engine shutdown. 02417_ Lgt. Treads broken. 02417_ Overheating: Short circuit. Map ----- +----------------------------------------------------+ | ??????????????????????????????????????????? | | ??????????????????????????????????????????? | | ??????????????????????????????????????????? | | ??????????????????????????????????????????? | | ??????????????????????????????????????????? | | ??????????????????????????????????????????? | | ??????????????????????????????????????????? | | ??????????????????????????????????????????? | | ??????????????????????????????????????????? | | ??????????????????????????????????????????? | | ??????????????????????????????????????????? | | ??????????????????????????????????????????? | | ??????????+ ????????????????????????????? | | ??????????# ????????????????????????????? | | ??????????# ????????????????????????????? | | ??????????# #???????????????????????????? | | ??????????# #???????????????????????????? | | ??????????# #???????????????????????????? | | ??????????# #?????? ? #?????????????????? | | ??????????# #????? #?????????????????? | | ??????????# #?????"" #?????????????????? | | ??????????# #????""" ???????????????????? | | ??????????+ ##???"""????????????????????? | | ??????????# =; ? ?????????????????????? | | ??????????# %!;;####+#+#?????????????????? | | ??????????# =%[ @=% #?????????????????? | | ??????????# [%= !! +?????????????????? | | ??????????# *[! #?????????????????? | | ??????????# % ######?????????????????? | | ???######## #??????????????????????? | | ???# T # #??????????????????????? | | ???# # #??????????????????????? | | ???# """" ; ###????????????????????? | | ???# """" # #????????????????????? | | ???# """ # #????????????????????? | | ???# # #????????????????????? | | ???######## """ #????????????????????? | | ??????????# %""" #????????????????????? | | ??????????# """ #????????????????????? | | ??????????# """ #????????????????????? | | ??????????# """ #????????????????????? | | ??????????# #????????????????????? | | ??????????# #????????????????????? | | ????????#####/## #????????????????????? | | ????????# ## #????????????????????? | | ????????# ** ## #????????????????????? | | ????????# ** ## #????????????????????? | | ????????# ## #????????????????????? | | ????????# [ ## #????????????????????? | | ????????# ! ## #????????????????????? | +----------------------------------------------------+ Best States ------------- Heat Dissipation 41 Energy Generation 12 Energy Capacity 265 Matter Stores 300 Matter Capacity 300 Sight Range 16 Robot Scan Range 14 Terrain Scan Density 10 Armor Coverage 300 Resistance: KI 20 Evasion (%) 55 Recoil Reduction 4 Item Schematics ----------------- Hvy. Assault Rifle | -9/Materials | Scanalyzed Robot Schematics ------------------ None Fabricated ------------ Nothing Repaired ---------- Nothing Studied --------- None Alien Tech Used ----------------- None Achievements -------------- None Challenges ------------ None Game ------ Seed BiocellTargetingScrap Manual? 0 Play Time 00:51:54 Cumulative 98.2 hours Start 2026.01.22 @ 08:05:22 End 2026.01.24 @ 12:37:20 Sessions 143 Manual Loads 0 Difficulty Rogue Special Mode None Game No. 45 Rogue 10 Adventurer 0 Explorer 35 Win Type - Total 1 Types 1/0/0/0/0/0/0/0/0/0 Lore% 29 Gallery% 34 Achievement% 27 Wizard Run 0 Options --------- Layout 0 ASCII 1 Keyboard 1 Movement Vi Keybinds 1 Fullscreen 0 Font 20/SmallcapsGlow Map View 50x62 Zoom Use 0% Tactical HUD 1 Map Filters NONE Filters NONE Steam 0 RUN: 5f7dcab1-9511-4c20-8efa-fd20d62ac87d